[Event "FIDE World School-ch O-15 2025"]
[Site "Vrnjacka Banja"]
[Date "2025.03.24"]
[Round "5.5"]
[White "Khaleev, Timofey D"]
[Black "Urangoo, Gurvanbaatar"]
[Result "1-0"]
[Annotator "TA"]
[ECO "B92"]
[WhiteElo "1919"]
[BlackElo "1982"]
[PlyCount "71"]
[EventDate "2025.03.19"]
[EventType "swiss"]
[EventCountry "SRB"]
[SourceTitle "playchess.com"]
[Source "ChessBase"]
[SourceQuality "1"]
[TimeControl "5400+30"]

{[%evp 19,71,0,9,7,17,18,15,20,16,12,28,21,51,46,78,71,112,99,111,113,127,129,82,70,120,141,116,41,127,59,120,142,275,275,652,447,565,358,510,504,477,500,29991,29992,29992,29993,29993,29994,29994,29995,29996,29997,29997,29998]} 1. e4 {[%emt 0:00:01]} c5 {[%emt 0:00:03]} 2. Nf3 {[%emt 0:00:04]} d6 {[%emt 0:00:05]} 3. d4 {[%emt 0:00:04]} cxd4 {[%emt 0:00:04]} 4. Nxd4 {[%emt 0:00:04]} Nf6 {[%emt 0:00:04]} 5. Nc3 {[%emt 0:00:04]} a6 {[%emt 0:00:05]} 6. Be2 {[%emt 0:00:18]} e5 {[%emt 0:00:04]} 7. Nb3 {[%emt 0:00:12]} Be7 {[%emt 0:00:05]} 8. Bg5 {[%emt 0:00:04]} Be6 {[%emt 0:00:41]} 9. Bxf6 {[%emt 0:00:05]} Bxf6 {[%emt 0:00:10]} 10. Qd3 {[%emt 0:00:05]} Nc6 {[%emt 0:01:06]} 11. O-O-O {[%emt 0:00:34] B92: Sicilian Najdorf: 6 Be2.} Nd4 {[%emt 0:00:35]} 12. Nxd4 {[%emt 0:00:06]} exd4 {[%emt 0:00:02]} 13. Nd5 {[%emt 0:00:08] The position is equal.} Bxd5 {[%emt 0:00:10]} 14. exd5 {[%emt 0:00:05]} O-O {[%emt 0:02:07] [#]} 15. h4 $1 {[%emt 0:04:20][%cal Bh2h4,Bh4h5,Bh5g6][%mdl 32]} Qa5 $146 {[%emt 0:05:42]} (15... Bxh4 16. g3 Bg5+ 17. f4) (15... Re8 16. Kb1) (15... Re8 16. Qf3 Rc8 17. Bd3 Re5 18. g4 g6 19. Kb1 Rc5 20. g5 Bg7 21. h5 Rxg5 22. hxg6 hxg6 {1-0 Ruiz Aguilar,P (2178)-Munoz Galvez,J (2318) Medellin Flores op 30th 2023 (3)}) 16. Kb1 {[%emt 0:00:08]} Qb4 {[%emt 0:16:16]} 17. g4 {[%emt 0:20:02][%cal Bg2g4,Bg4g5][%mdl 32]} Rfe8 {[%emt 0:08:41]} 18. a3 {[%emt 0:38:14]} Qb6 {[%emt 0:01:56]} 19. g5 {[%emt 0:00:48]} Be5 {[%emt 0:08:02]} 20. h5 {[%emt 0:06:11]} Rac8 {[%emt 0:03:05]} (20... Re7 $142 21. Bg4 Qb5) 21. g6 {[%emt 0:02:03]} fxg6 {[%emt 0:03:21]} (21... f5 $14) 22. hxg6 $16 {[%emt 0:01:21]} h6 {[%emt 0:00:45] [#]} 23. Qf5 {[%emt 0:02:49] Really sharp!} (23. Bg4 $1 $16 {[%cal Rg4c8]} Rc3 24. Qf5) 23... Qc7 {[%emt 0:16:23] Black is weak on the light squares} ({Black should try} 23... Rf8 $14 24. Qe6+ Kh8) 24. Bd3 {[%emt 0:06:31] White is much more active.} (24. Bg4 $16) 24... Qe7 {[%emt 0:06:53]} (24... Rf8 $14 25. Qe6+ Kh8) 25. f4 $36 {[%emt 0:04:10][%mdl 2048] White has strong initiative.} Rf8 {[%emt 0:05:16] [#]} (25... Bf6 $16 {keeps fighting.} 26. Qg4 Kh8) 26. Qg4 $1 $18 {[%emt 0:00:42]} Bf6 $2 {[%emt 0:02:59]} (26... Bxf4 27. Bf5 Rxf5 28. Qxf5 Rf8) 27. Bf5 {[%emt 0:02:21]} Rc4 {[%emt 0:03:03]} 28. Rdg1 {[%emt 0:05:11]} Rd8 {[%emt 0:05:53]} (28... Kh8 $142 29. Re1 Qd8) 29. Be6+ {[%emt 0:00:57]} Kf8 {[%emt 0:00:44]} 30. Qf5 {[%emt 0:01:13][%cal Oh1h6] aiming for Rxh6!.} Ke8 {[%emt 0:01:20] [#]} (30... Qc7 $18 31. Rxh6 Ke7) 31. Rxh6 $1 {[%emt 0:02:00] White mates.} gxh6 {[%emt 0:00:23] [#]} 32. g7 $1 {[%emt 0:01:16][%mdl 512]} Bxg7 {[%emt 0:00:08]} 33. Qg6+ {[%emt 0:00:18]} Kf8 {[%emt 0:00:03]} 34. Qh7 {[%emt 0:00:07][%csl Ge6][%cal Rh7g8]} Qf6 {[%emt 0:01:26]} 35. Qg8+ {[%emt 0:00:05]} Ke7 {[%emt 0:00:03]} 36. Rxg7+ {[%emt 0:00:04] Weighted Error Value: White=0.28 (precise) /Black=0.69  Mistake:       	White=2     	Black=8      Inaccurate:     	White=1     	Black=3      OK:         	White=9     	Black=3      Best:        	---       	Black=1      Strong:       	White=1     	---        Brilliant:      	White=1     	---} 1-0

[Event "FIDE World School-ch O-15 2025"]
[Site "Vrnjacka Banja"]
[Date "2025.03.24"]
[Round "5.6"]
[White "Cirkovic, Vuk"]
[Black "Dandeniya, D D L N"]
[Result "0-1"]
[Annotator "TA"]
[ECO "C41"]
[WhiteElo "1981"]
[BlackElo "1881"]
[PlyCount "70"]
[EventDate "2025.03.19"]
[EventType "swiss"]
[EventCountry "SRB"]
[SourceTitle "playchess.com"]
[Source "ChessBase"]
[SourceQuality "1"]
[TimeControl "5400+30"]

{[%evp 9,70,-19,21,29,19,14,17,31,63,59,53,51,46,37,43,35,57,56,49,71,154,53,73,79,72,71,67,23,36,-23,-18,-13,0,-137,-112,-126,-61,-178,-178,-203,-200,-202,-162,-441,-233,-293,-275,-457,-431,-571,-552,-981,-929,-888,-725,-1208,-1185,-1473,-1460,-5373,-1102,-2317,-2270]} 1. e4 {[%emt 0:00:04]} d6 {[%emt 0:00:14]} 2. d4 {[%emt 0:00:33]} Nf6 {[%emt 0:00:18]} 3. Nc3 {[%emt 0:00:48]} e5 {[%emt 0:00:10]} 4. Nf3 {[%emt 0:01:15]} Nbd7 {[%emt 0:00:15]} 5. g4 {[%emt 0:01:00]} h6 {[%emt 0:00:17]} 6. Rg1 {[%emt 0:01:06] C41: Philidor Defence.} c6 {[%emt 0:00:12][%cal Bc7c6,Bc6c5][%mdl 32]} 7. Be3 {[%emt 0:03:03]} b5 {[%emt 0:05:16] 7...Be7 deserves study.} 8. a3 {[%emt 0:02:00] The position is equal.} a6 {[%emt 0:01:27]} 9. h4 {[%emt 0:02:43]} exd4 {[%emt 0:10:45]} 10. Nxd4 {[%emt 0:20:21][%cal Og4g5,Bf3d4,Bd4b3,Bb3d2,Bd2e4][%mdl 32] [#]} Ne5 {[%emt 0:06:47]} 11. f3 $146 {[%emt 0:06:42]} (11. Be2 c5 12. Nf5 g6 13. g5 hxg5 14. hxg5 gxf5 15. gxf6 fxe4 16. Nxe4 Bb7 17. Bf3 {0-1 Nasuta,G (2579)-Khismatullin,D (2579) Wch Blitz Samarkand 2023 (11)}) 11... c5 {[%emt 0:06:32]} 12. Nb3 {[%emt 0:08:25] g5 is the strong threat.} Nc4 {[%emt 0:02:34]} 13. Bxc4 {[%emt 0:03:45]} bxc4 {[%emt 0:00:07]} 14. Nd2 {[%emt 0:01:32]} Be6 {[%emt 0:06:41]} (14... d5) 15. Qe2 {[%emt 0:11:06]} (15. f4 $16) 15... d5 $14 {[%emt 0:02:23]} 16. exd5 {[%emt 0:03:35]} Nxd5 {[%emt 0:00:14]} 17. Nxd5 {[%emt 0:08:47]} (17. Nxc4 Nxc3 (17... Qxh4+ 18. Bf2 $11) 18. bxc3 Qxh4+ 19. Bf2 Qf6 $15) 17... Qxd5 {[%emt 0:00:16]} 18. Ne4 {[%emt 0:00:56] Black should prevent Bd2.} (18. O-O-O c3 19. Nb3 Qc6 $11) 18... Be7 {[%emt 0:02:17]} 19. Bf2 {[%emt 0:05:46]} (19. Qh2 $14) 19... O-O $11 {[%emt 0:19:38]} 20. Rd1 {[%emt 0:04:33]} Qc6 {[%emt 0:03:59]} 21. Bg3 {[%emt 0:01:33]} (21. g5 $11) 21... Bd5 $17 {[%emt 0:04:37]} 22. Kd2 {[%emt 0:09:27]} Rfe8 {[%emt 0:04:14]} ({Black should try} 22... Bxe4 $17 23. fxe4 Qb6 24. Qxc4 (24. Kc1 $2 c3 $19) 24... Qxb2) 23. Kc1 {[%emt 0:00:54]} ({Better is} 23. c3 $1 $15) 23... c3 $1 $19 {[%emt 0:00:38]} 24. Qd3 {[%emt 0:01:34]} cxb2+ {[%emt 0:00:10]} 25. Kb1 {[%emt 0:00:12]} Red8 $36 {[%emt 0:01:03][%mdl 2048] White is under strong pressure.} 26. c4 $2 {[%emt 0:00:58]} (26. Qe3 {is a better defense.}) 26... Be6 {[%emt 0:00:44]} (26... Bxe4 $142 27. Qxe4 Qa4 28. Rxd8+ Rxd8) 27. Qc2 {[%emt 0:00:04]} Rd4 {[%emt 0:00:45]} 28. Rxd4 $2 {[%emt 0:00:52]} (28. Be5 Rxc4 29. Qxb2) 28... cxd4 {[%emt 0:00:02] Black is clearly winning.} 29. c5 {[%emt 0:00:11]} Ra7 {[%emt 0:02:14]} 30. Kxb2 {[%emt 0:00:28]} Rb7+ {[%emt 0:00:04]} 31. Kc1 {[%emt 0:01:13]} Rb3 {[%emt 0:00:01]} 32. Kd2 {[%emt 0:00:06]} Rxf3 {[%emt 0:01:32][%cal Od4d3] [#]} 33. Re1 {[%emt 0:00:39]} Rxa3 {[%emt 0:00:37][%cal Oe7d8] Threatens to win with ...Bd8!.} 34. Rb1 {[%emt 0:00:42]} Ra2 {[%emt 0:00:08]} (34... d3 $142 35. Qb2 Qxe4 (35... Bxc5 $2 36. Qb7 $19) (35... Ra2 $2 36. Qxa2 Bxa2 37. Re1 $19) 36. Qxa3 Qe2+ (36... Bxg4 37. Rb8+ Kh7 38. Qxd3 $17) 37. Kc3 Bf6+ (37... Bxg4 $2 38. Qb3 $19) 38. Be5 Bxe5+ 39. Kb4 d2 (39... Qxg4+ $2 40. Ka5 $19) 40. Qc3 Qb5+ (40... Bxc3+ $2 41. Kxc3 Qe1 42. Rxe1 $19) 41. Ka3 Qxb1 (41... Bxc3 {is a self mate.} 42. Rxb5 axb5 43. h5 d1=Q 44. c6 Qd6#) 42. Qf3 Qb2+ (42... d1=B 43. Qa8+ Kh7 44. Qh8+ Kxh8 45. h5 Qb3#) 43. Ka4 Qb5+ 44. Ka3 Bb2#) 35. Rb2 {[%emt 0:00:09]} Rxb2 {[%emt 0:00:06] Weighted Error Value: White=1.32/Black=0.45  Mistake:       	White=6     	Black=3      Inaccurate:     	White=3     	Black=1      OK:         	White=7     	Black=7      Best:        	White=2     	Black=4      Strong:       	---       	Black=1} 0-1

[Event "FIDE World School-ch O-15 2025"]
[Site "Vrnjacka Banja"]
[Date "2025.03.24"]
[Round "5.7"]
[White "Mane, Arnav"]
[Black "Qusaiyn, Altynbek"]
[Result "1/2-1/2"]
[Annotator "TA"]
[ECO "B40"]
[WhiteElo "1748"]
[BlackElo "1972"]
[PlyCount "118"]
[EventDate "2025.03.19"]
[EventType "swiss"]
[EventCountry "SRB"]
[SourceTitle "playchess.com"]
[Source "ChessBase"]
[SourceQuality "1"]
[TimeControl "5400+30"]

{[%evp 11,118,-10,0,-42,13,6,10,-35,-37,-18,-16,-11,-25,-10,-2,-35,91,29,43,37,38,42,56,-16,174,8,14,0,7,-13,-13,-9,-13,-12,-14,-21,-22,-15,0,0,0,0,0,0,20,-6,-6,-6,-8,-7,-4,-9,-14,-12,-7,0,0,-19,-10,-18,-12,-18,-13,-26,-22,-26,-24,-28,-20,-24,-21,-33,-25,-43,-43,-39,-14,-14,-16,-24,-23,-32,0,-18,0,0,0,0,0,-18,-4,-4,-15,-14,-16,-21,0,-8,0,-35,-8,-10,-8,-8,-16,-60,0,0,0]} 1. e4 {[%emt 0:00:20]} c5 {[%emt 0:00:05]} 2. Nf3 {[%emt 0:00:05]} e6 {[%emt 0:00:03]} 3. c3 {[%emt 0:00:08]} d5 {[%emt 0:00:04]} 4. e5 {[%emt 0:00:05]} d4 {[%emt 0:08:29]} 5. Bd3 {[%emt 0:00:07]} Nc6 {[%emt 0:03:43]} 6. O-O {[%emt 0:00:09]} Nge7 {[%emt 0:02:42]} 7. Be4 {[%emt 0:00:06] B40: Sicilian: 2...e6, Unusual lines.} Bd7 {[%emt 0:15:54]} (7... Ng6 $15) 8. Na3 {[%emt 0:00:22]} Ng6 {[%emt 0:03:48]} 9. Nc2 $146 {[%emt 0:16:29][%cal Rc3d4]} ({Predecessor:} 9. Re1 a6 10. d3 Rc8 11. cxd4 cxd4 12. Nc2 Qb6 13. Bxg6 hxg6 14. b3 Bb4 15. Bd2 {1-0 Bauer,C (2627)-Miladinovic,I (2607) EU-ch blitz Cannes 2006 (9)}) 9... Qc7 {[%emt 0:10:50]} 10. cxd4 {[%emt 0:08:04]} cxd4 {[%emt 0:00:06]} 11. Ncxd4 {[%emt 0:01:08]} Nxd4 {[%emt 0:02:45]} 12. Nxd4 {[%emt 0:00:10]} Nxe5 {[%emt 0:00:38]} 13. d3 {[%emt 0:09:28]} Ng6 {[%emt 0:05:52]} (13... f5 $15 {keeps the upper hand.} 14. Bf3 Bc5) 14. Qb3 {[%emt 0:05:07]} ({White should try} 14. Be3 $16) 14... Rb8 {[%emt 0:15:51]} 15. Be3 {[%emt 0:04:51]} Bd6 {[%emt 0:08:26]} 16. Rfc1 {[%emt 0:15:51]} Qa5 {[%emt 0:06:01]} 17. Qc3 {[%emt 0:11:23]} ({Don't play} 17. Bxb7 Ne5 $11) (17. a4 $14) 17... Qh5 $2 {[%emt 0:02:38] [#]} (17... Qxc3 $11 18. bxc3 f5) 18. g3 $2 {[%emt 0:02:02]} ({Only move:} 18. Nf3 $18) 18... O-O $11 {[%emt 0:01:03]} 19. Bf3 {[%emt 0:01:00]} Qe5 {[%emt 0:00:07]} 20. Nb3 {[%emt 0:02:17][%cal Bd4b3,Bb3d2,Bd2c4][%mdl 32]} b6 {[%emt 0:03:15]} 21. Qxe5 {[%emt 0:02:09]} Nxe5 {[%emt 0:00:06]} 22. Be2 {[%emt 0:01:07]} Rbc8 {[%emt 0:01:33]} 23. d4 {[%emt 0:00:28]} Ng6 {[%emt 0:00:46] Prevents Bf4} 24. Nd2 {[%emt 0:00:27]} Ne7 {[%emt 0:00:43]} 25. Nc4 {[%emt 0:01:10]} Bb8 {[%emt 0:00:25] Not much happening anymore} 26. Ne5 {[%emt 0:00:30]} Rxc1+ {[%emt 0:03:14]} 27. Rxc1 {[%emt 0:00:11]} Bc8 {[%emt 0:00:03]} 28. Nc6 {[%emt 0:01:09]} Nxc6 {[%emt 0:00:10]} 29. Rxc6 {[%emt 0:00:02]} Bb7 {[%emt 0:00:08]} 30. Rc3 {[%emt 0:00:23]} f6 {[%emt 0:00:53]} 31. Bc4 {[%emt 0:00:46]} Kf7 {[%emt 0:00:13]} 32. f4 {[%emt 0:00:33]} f5 {[%emt 0:00:39]} 33. Kf2 {[%emt 0:01:13]} Bd6 {[%emt 0:00:45]} 34. Bb3 {[%emt 0:01:02]} Ke7 {[%emt 0:00:25]} 35. Ke2 {[%emt 0:04:13]} Rc8 {[%emt 0:02:19]} 36. Rxc8 {[%emt 0:01:28]} Bxc8 {[%emt 0:00:01][%mdl 4096] Endgame KBB-KBB} 37. Kd3 {[%emt 0:00:20]} Bb7 {[%emt 0:00:41]} 38. Kc4 {[%emt 0:00:51]} Kd7 {[%emt 0:02:04]} 39. Kc3 {[%emt 0:02:43]} Bc6 {[%emt 0:01:18]} 40. a3 {[%emt 0:01:44]} Be7 {[%emt 0:00:17]} 41. Ba2 {[%emt 0:00:35]} Kd6 {[%emt 0:00:45]} 42. b4 {[%emt 0:00:25]} b5 {[%emt 0:00:57]} 43. Bb3 {[%emt 0:00:26][%cal Od4d5]} Bd5 {[%emt 0:00:07]} 44. Bd1 {[%emt 0:00:40]} Kc6 {[%emt 0:00:20]} 45. Be2 {[%emt 0:00:57]} h6 {[%emt 0:00:14]} 46. h4 {[%emt 0:00:21]} a5 {[%emt 0:00:29]} 47. Bd1 {[%emt 0:00:46]} axb4+ {[%emt 0:00:34]} 48. axb4 {[%emt 0:00:01]} Bc4 {[%emt 0:00:13]} 49. Bf3+ {[%emt 0:00:09]} Kd6 {[%emt 0:00:11]} 50. Bg2 {[%emt 0:00:52]} Bf6 {[%emt 0:00:09]} 51. Bf3 {[%emt 0:00:56]} Ke7 {[%emt 0:00:05]} 52. Bh5 {[%emt 0:00:24]} Kf8 {[%emt 0:00:20]} 53. Bf3 {[%emt 0:00:44]} Be7 {[%emt 0:00:06]} 54. Bh5 {[%emt 0:00:37]} Bd6 {[%emt 0:00:10]} 55. Bf3 {[%emt 0:00:30]} g6 {[%emt 0:00:42]} (55... g5 $5) 56. Bd1 {[%emt 0:00:30]} Kg7 {[%emt 0:00:42]} 57. Bf3 {[%emt 0:00:46]} g5 {[%emt 0:01:28]} 58. Bd1 {[%emt 0:02:05]} Be7 {[%emt 0:01:17]} (58... g4 $15) 59. hxg5 {[%emt 0:00:57]} hxg5 {[%emt 0:00:05] Weighted Error Value: White=0.17 (very precise) /Black=0.18 (very precise)   Loses game:     	---       	Black=1      Missed win:     	White=1     	---        Mistake:       	White=2     	Black=3      Inaccurate:     	White=5     	Black=3      OK:         	White=17    	Black=15     Best:        	---       	Black=1} 1/2-1/2

[Event "FIDE World School-ch O-15 2025"]
[Site "Vrnjacka Banja"]
[Date "2025.03.24"]
[Round "5.8"]
[White "Tulendinov, Dinmukhammed"]
[Black "Rakic, Nikola V"]
[Result "1-0"]
[Annotator "NA RC"]
[ECO "B10"]
[WhiteElo "2173"]
[BlackElo "1894"]
[PlyCount "47"]
[EventDate "2025.03.19"]
[EventType "swiss"]
[EventCountry "SRB"]
[SourceTitle "playchess.com"]
[Source "ChessBase"]
[SourceQuality "1"]
[TimeControl "5400+30"]

1. e4 {[%emt 0:00:01]} c6 {[%emt 0:00:21]} 2. c4 {[%emt 0:00:57]} d5 {[%emt 0:00:11]} 3. exd5 {[%emt 0:00:13]} cxd5 {[%emt 0:00:16]} 4. cxd5 {[%emt 0:00:09]} Nf6 {[%emt 0:00:22]} 5. Qa4+ {[%emt 0:00:06]} Nbd7 {[%emt 0:00:23]} 6. Nc3 {[%emt 0:00:05]} g6 {[%emt 0:00:17]} 7. Nf3 {[%emt 0:01:18]} Bg7 {[%emt 0:01:11]} 8. Bc4 {[%emt 0:00:06]} O-O {[%emt 0:00:09]} 9. d3 {[%emt 0:00:03]} a6 {[%emt 0:01:09]} 10. Qa3 {[%emt 0:00:46]} b6 {[%emt 0:05:10]} 11. O-O {[%emt 0:03:55]} Bb7 {[%emt 0:00:58]} 12. Re1 {[%emt 0:22:48]} Re8 {[%emt 0:01:29]} 13. Bg5 {[%emt 0:00:06]} b5 {[%emt 0:02:09]} 14. Bb3 {[%emt 0:01:02]} Nb6 {[%emt 0:01:02]} 15. d6 {[%emt 0:05:56]} Qxd6 {[%emt 0:04:18]} 16. Ne5 {[%emt 0:02:22]} Nfd5 {[%emt 0:04:47]} 17. Nxd5 {[%emt 0:20:48]} Bxd5 {[%emt 0:06:45]} 18. Qxd6 {[%emt 0:09:28]} exd6 {[%emt 0:00:13]} 19. Nd7 {[%emt 0:00:01]} Bxb2 {[%emt 0:20:06]} 20. Nxb6 {[%emt 0:00:15]} Bxa1 {[%emt 0:10:12]} 21. Rxa1 {[%emt 0:00:34]} Bxb3 {[%emt 0:07:10]} 22. Nxa8 {[%emt 0:03:25]} Bxa2 {[%emt 0:15:10]} 23. Nc7 {[%emt 0:01:39]} Re2 {[%emt 0:04:31]} 24. Kf1 {[%emt 0:02:27]} 1-0